[Event "ONJK-A 2019"]
[Site "Borne"]
[Date "2019.08.05"]
[Round "1.8"]
[White "Akulova, Alicia"]
[Black "Shakhverdian, William"]
[Result "0-1"]
[ECO "C47"]
[WhiteElo "1702"]
[BlackElo "2001"]
[Annotator "NA"]
[PlyCount "52"]
[EventDate "2019.08.05"]
[EventType "swiss"]
[EventCountry "NED"]
[SourceTitle "playchess.com"]
[Source "ChessBase"]
[SourceQuality "1"]
[TimeControl "5400+30"]

1. e4 {[%emt 0:00:00]} e5 {[%emt 0:00:00]} 2. Nf3 {[%emt 0:00:00]} Nc6 {[%emt 0:00:00]} 3. Nc3 {[%emt 0:00:00]} Nf6 {[%emt 0:00:16]} 4. d4 {[%emt 0:00:00]} exd4 {[%emt 0:00:12]} 5. Nxd4 {[%emt 0:00:06]} Bc5 {[%emt 0:01:11]} 6. Nxc6 {[%emt 0:00:26]} bxc6 {[%emt 0:00:58]} 7. Bd3 {[%emt 0:00:17]} d5 {[%emt 0:02:04]} 8. exd5 {[%emt 0:00:32]} cxd5 {[%emt 0:01:14]} 9. O-O {[%emt 0:00:56]} O-O {[%emt 0:00:06]} 10. Bg5 {[%emt 0:01:47]} c6 {[%emt 0:05:43]} 11. h3 {[%emt 0:02:46]} h6 {[%emt 0:02:15]} 12. Bh4 {[%emt 0:06:10]} Rb8 {[%emt 0:01:29]} 13. Rb1 {[%emt 0:02:31]} Rb4 {[%emt 0:09:00]} 14. Bg3 {[%emt 0:02:24]} Bd6 {[%emt 0:00:49]} 15. Bxd6 {[%emt 0:01:15]} Qxd6 {[%emt 0:00:05]} 16. Qf3 {[%emt 0:01:02]} Rf4 {[%emt 0:03:43]} 17. Qd1 {[%emt 0:02:44]} Rh4 {[%emt 0:05:09]} 18. Qf3 {[%emt 0:03:55]} Rf4 {[%emt 0:03:42]} 19. Qd1 {[%emt 0:00:42]} Re8 {[%emt 0:01:36]} 20. Ne2 {[%emt 0:07:05]} Rh4 {[%emt 0:01:15]} 21. Qe1 {[%emt 0:10:57]} Ra4 {[%emt 0:15:13]} 22. a3 {[%emt 0:06:24]} Re5 {[%emt 0:03:14]} 23. f4 {[%emt 0:07:18]} Re8 {[%emt 0:03:39]} 24. Qf2 {[%emt 0:12:04]} Ne4 {[%emt 0:02:47]} 25. Bxe4 {[%emt 0:01:05]} Raxe4 {[%emt 0:00:05]} 26. Rbe1 {[%emt 0:11:15]} Qe7 {[%emt 0:01:33]} 0-1

[Event "ONJK-A 2019"]
[Site "Borne"]
[Date "2019.08.05"]
[Round "1.9"]
[White "Noordenbos, Daan"]
[Black "Segers, Job"]
[Result "1-0"]
[ECO "C62"]
[WhiteElo "2042"]
[BlackElo "1618"]
[Annotator "NA"]
[PlyCount "53"]
[EventDate "2019.08.05"]
[EventType "swiss"]
[EventCountry "NED"]
[SourceTitle "playchess.com"]
[Source "ChessBase"]
[SourceQuality "1"]
[TimeControl "5400+30"]

1. e4 {[%emt 0:00:00]} e5 {[%emt 0:00:00]} 2. Nf3 {[%emt 0:00:00]} Nf6 {[%emt 0:00:00]} 3. Nc3 {[%emt 0:00:57]} Nc6 {[%emt 0:00:00]} 4. Bb5 {[%emt 0:01:40]} d6 {[%emt 0:00:00]} 5. d4 {[%emt 0:02:30]} Bd7 {[%emt 0:11:07]} 6. Bg5 {[%emt 0:04:42]} h6 {[%emt 0:11:39]} 7. Bxf6 {[%emt 0:18:02]} Qxf6 {[%emt 0:02:28]} 8. Nd5 {[%emt 0:00:26]} Qd8 {[%emt 0:00:08]} 9. dxe5 {[%emt 0:00:38]} Nxe5 {[%emt 0:01:19]} 10. Bxd7+ {[%emt 0:01:39]} Qxd7 {[%emt 0:03:02]} 11. Nxe5 {[%emt 0:00:18]} dxe5 {[%emt 0:00:07]} 12. Qf3 {[%emt 0:00:11]} O-O-O {[%emt 0:01:17]} 13. O-O-O {[%emt 0:00:29]} Bc5 {[%emt 0:01:31]} 14. Nb6+ {[%emt 0:00:17]} Bxb6 {[%emt 0:00:45]} 15. Rxd7 {[%emt 0:00:23]} Rxd7 {[%emt 0:00:53]} 16. Rd1 {[%emt 0:02:57]} Rhd8 {[%emt 0:00:18]} 17. Rd3 {[%emt 0:02:21]} g6 {[%emt 0:06:55]} 18. Kd1 {[%emt 0:03:00]} Bd4 {[%emt 0:03:07]} 19. b3 {[%emt 0:05:05]} c6 {[%emt 0:06:00]} 20. Ke2 {[%emt 0:00:20]} Bc5 {[%emt 0:01:36]} 21. Qf6 {[%emt 0:02:27]} Bd6 {[%emt 0:02:30]} 22. g4 {[%emt 0:02:35]} Kc7 {[%emt 0:04:16]} 23. Qg7 {[%emt 0:04:05]} h5 {[%emt 0:09:30]} 24. gxh5 {[%emt 0:00:32]} gxh5 {[%emt 0:00:23]} 25. Qh6 {[%emt 0:00:17]} f5 {[%emt 0:03:41]} 26. exf5 {[%emt 0:00:50]} Rf8 {[%emt 0:01:09]} 27. Rxd6 {[%emt 0:00:08]} 1-0

[Event "ONJK-A 2019"]
[Site "Borne"]
[Date "2019.08.05"]
[Round "1.10"]
[White "Koning, Femke"]
[Black "Boudry, William"]
[Result "0-1"]
[ECO "B07"]
[WhiteElo "1580"]
[BlackElo "2033"]
[Annotator "NA"]
[PlyCount "100"]
[EventDate "2019.08.05"]
[EventType "swiss"]
[EventCountry "NED"]
[SourceTitle "playchess.com"]
[Source "ChessBase"]
[SourceQuality "1"]
[TimeControl "5400+30"]

1. e4 {[%emt 0:00:00]} d6 {[%emt 0:00:00]} 2. d4 {[%emt 0:00:21]} Nf6 {[%emt 0:00:00]} 3. Nc3 {[%emt 0:01:02]} e5 {[%emt 0:00:42]} 4. dxe5 {[%emt 0:04:44]} dxe5 {[%emt 0:00:14]} 5. Qxd8+ {[%emt 0:01:29]} Kxd8 {[%emt 0:00:04]} 6. Bc4 {[%emt 0:02:23]} Ke8 {[%emt 0:00:50]} 7. f3 {[%emt 0:05:28]} Bc5 {[%emt 0:00:58]} 8. Nge2 {[%emt 0:02:34]} c6 {[%emt 0:00:14]} 9. a3 {[%emt 0:02:37]} a5 {[%emt 0:01:54]} 10. a4 {[%emt 0:07:22]} Na6 {[%emt 0:02:34]} 11. Bd2 {[%emt 0:08:43]} Nc7 {[%emt 0:01:07]} 12. Nc1 {[%emt 0:06:21]} Be6 {[%emt 0:10:21]} 13. Bxe6 {[%emt 0:07:56]} Nxe6 {[%emt 0:01:06]} 14. Nb3 {[%emt 0:01:14]} Bb6 {[%emt 0:00:34]} 15. Ne2 {[%emt 0:06:11]} Nd7 {[%emt 0:02:28]} 16. Bc3 {[%emt 0:02:35]} f6 {[%emt 0:01:18]} 17. O-O-O {[%emt 0:02:56]} Ndc5 {[%emt 0:00:46]} 18. Nxc5 {[%emt 0:01:36]} Bxc5 {[%emt 0:02:05]} 19. Kb1 {[%emt 0:07:32]} Ke7 {[%emt 0:02:29]} 20. Rd3 {[%emt 0:01:51]} Bf2 {[%emt 0:01:08]} 21. b3 {[%emt 0:05:23]} Nc5 {[%emt 0:01:21]} 22. Rdd1 {[%emt 0:00:21]} b5 {[%emt 0:01:07]} 23. axb5 {[%emt 0:04:47]} cxb5 {[%emt 0:00:11]} 24. Rd5 {[%emt 0:02:36]} b4 {[%emt 0:02:55]} 25. Bb2 {[%emt 0:02:20]} Ra7 {[%emt 0:00:28]} 26. Rhd1 {[%emt 0:01:05]} Rc8 {[%emt 0:01:12]} 27. Nc1 {[%emt 0:00:55]} a4 {[%emt 0:04:56]} 28. bxa4 {[%emt 0:01:41]} Nxa4 {[%emt 0:00:29]} 29. Nb3 {[%emt 0:00:11]} Rac7 {[%emt 0:01:40]} 30. R1d2 {[%emt 0:02:19]} Be1 {[%emt 0:00:15]} 31. Rd1 {[%emt 0:00:40]} Bc3 {[%emt 0:00:36]} 32. Bc1 {[%emt 0:01:01]} Bd4 {[%emt 0:00:55]} 33. Bd2 {[%emt 0:00:54]} Bc3 {[%emt 0:00:20]} 34. Bc1 {[%emt 0:00:02]} Ra8 {[%emt 0:00:22]} 35. R1d3 {[%emt 0:01:04]} Rca7 {[%emt 0:02:22]} 36. Be3 {[%emt 0:01:58]} Nb6 {[%emt 0:00:56]} 37. Bc5+ {[%emt 0:01:26]} Kf7 {[%emt 0:00:11]} 38. Rxc3 {[%emt 0:01:37]} Nxd5 {[%emt 0:00:09]} 39. Rd3 {[%emt 0:00:17]} Nc3+ {[%emt 0:00:18]} 40. Kc1 {[%emt 0:00:39]} Rb7 {[%emt 0:00:48]} 41. Kd2 {[%emt 0:00:35]} Na4 {[%emt 0:00:40]} 42. Be3 {[%emt 0:01:12]} Nb2 {[%emt 0:00:15]} 43. Rd5 {[%emt 0:00:48]} Nc4+ {[%emt 0:00:05]} 44. Kd3 {[%emt 0:00:15]} Nxe3 {[%emt 0:00:04]} 45. Kxe3 {[%emt 0:00:01]} Rc8 {[%emt 0:00:01]} 46. Rd2 {[%emt 0:01:51]} Rc3+ {[%emt 0:00:16]} 47. Ke2 {[%emt 0:00:18]} Rbc7 {[%emt 0:00:07]} 48. Kd1 {[%emt 0:00:06]} Ke6 {[%emt 0:00:06]} 49. Nc1 {[%emt 0:00:55]} Rd7 {[%emt 0:00:10]} 50. Nd3 {[%emt 0:00:41]} b3 {[%emt 0:00:20]} 0-1

[Event "ONJK-A 2019"]
[Site "Borne"]
[Date "2019.08.05"]
[Round "1.11"]
[White "Merkon, Oseb"]
[Black "Nies, Levi"]
[Result "1-0"]
[ECO "D31"]
[WhiteElo "2013"]
[BlackElo "1516"]
[Annotator "NA"]
[PlyCount "101"]
[EventDate "2019.08.05"]
[EventType "swiss"]
[EventCountry "NED"]
[SourceTitle "playchess.com"]
[Source "ChessBase"]
[SourceQuality "1"]
[TimeControl "5400+30"]

1. c4 {[%emt 0:00:00]} e6 {[%emt 0:03:07]} 2. Nc3 {[%emt 0:00:00]} d5 {[%emt 0:00:15]} 3. cxd5 {[%emt 0:00:00]} exd5 {[%emt 0:00:01]} 4. d4 {[%emt 0:00:01]} c6 {[%emt 0:00:53]} 5. g3 {[%emt 0:00:13]} Bf5 {[%emt 0:01:16]} 6. Bg2 {[%emt 0:00:02]} Qb6 {[%emt 0:00:49]} 7. Nf3 {[%emt 0:01:02]} Nd7 {[%emt 0:01:34]} 8. O-O {[%emt 0:00:30]} Bd6 {[%emt 0:01:14]} 9. a3 {[%emt 0:01:10]} Ngf6 {[%emt 0:00:20]} 10. b4 {[%emt 0:11:11]} a5 {[%emt 0:06:11]} 11. b5 {[%emt 0:00:15]} cxb5 {[%emt 0:10:22]} 12. Qb3 {[%emt 0:00:14]} a4 {[%emt 0:00:17]} 13. Qxb5 {[%emt 0:00:14]} O-O {[%emt 0:02:59]} 14. Nh4 {[%emt 0:11:58]} Bg4 {[%emt 0:16:04]} 15. h3 {[%emt 0:07:58]} Be6 {[%emt 0:17:47]} 16. Qd3 {[%emt 0:07:16]} Rfc8 {[%emt 0:03:16]} 17. f4 {[%emt 0:01:39]} Nc5 {[%emt 0:09:48]} 18. Nxd5 {[%emt 0:14:33]} Nxd5 {[%emt 0:09:23]} 19. dxc5 {[%emt 0:00:22]} Rxc5 {[%emt 0:02:14]} 20. Kh2 {[%emt 0:06:58]} Rc3 {[%emt 0:00:32]} 21. Qd2 {[%emt 0:00:51]} Qe3 {[%emt 0:03:40]} 22. Qe1 {[%emt 0:09:53]} Qc5 {[%emt 0:01:52]} 23. e4 {[%emt 0:01:51]} Ne3 {[%emt 0:01:13]} 24. Rf3 {[%emt 0:04:20]} Nc2 {[%emt 0:00:53]} 25. Qxc3 {[%emt 0:00:42]} Qxc3 {[%emt 0:00:16]} 26. Rxc3 {[%emt 0:00:02]} Nxa1 {[%emt 0:00:02]} 27. e5 {[%emt 0:00:20]} Be7 {[%emt 0:00:47]} 28. f5 {[%emt 0:09:14]} Rc8 {[%emt 0:01:08]} 29. Bb2 {[%emt 0:00:09]} Rxc3 {[%emt 0:00:49]} 30. Bxc3 {[%emt 0:00:02]} Ba2 {[%emt 0:00:02]} 31. Bxa1 {[%emt 0:00:17]} Bxa3 {[%emt 0:00:06]} 32. Bxb7 {[%emt 0:00:08]} Bc1 {[%emt 0:00:04]} 33. Nf3 {[%emt 0:00:50]} a3 {[%emt 0:00:09]} 34. Be4 {[%emt 0:00:07]} Bb2 {[%emt 0:00:55]} 35. Bxb2 {[%emt 0:00:02]} axb2 {[%emt 0:00:00]} 36. Nd2 {[%emt 0:00:02]} g6 {[%emt 0:00:47]} 37. g4 {[%emt 0:00:27]} gxf5 {[%emt 0:00:08]} 38. gxf5 {[%emt 0:00:07]} Kg7 {[%emt 0:00:03]} 39. Kg3 {[%emt 0:00:42]} h5 {[%emt 0:01:22]} 40. h4 {[%emt 0:00:23]} f6 {[%emt 0:00:40]} 41. Kf4 {[%emt 0:02:18]} fxe5+ {[%emt 0:01:12]} 42. Kxe5 {[%emt 0:00:03]} Kf7 {[%emt 0:00:00]} 43. Bb1 {[%emt 0:00:16]} Bxb1 {[%emt 0:00:23]} 44. Nxb1 {[%emt 0:00:01]} Ke7 {[%emt 0:00:01]} 45. f6+ {[%emt 0:00:10]} Kf7 {[%emt 0:00:05]} 46. Kf5 {[%emt 0:00:15]} Kf8 {[%emt 0:00:06]} 47. Nc3 {[%emt 0:00:08]} Kf7 {[%emt 0:00:08]} 48. Ke5 {[%emt 0:00:09]} Kf8 {[%emt 0:00:08]} 49. Ke6 {[%emt 0:00:04]} Ke8 {[%emt 0:00:06]} 50. f7+ {[%emt 0:00:06]} Kf8 {[%emt 0:00:06]} 51. Nb1 {[%emt 0:00:02]} 1-0

[Event "ONJK-A 2019"]
[Site "Borne"]
[Date "2019.08.05"]
[Round "1.12"]
[White "Kroon, Gerbrich"]
[Black "Godde, Matthias"]
[Result "0-1"]
[ECO "A07"]
[WhiteElo "1483"]
[BlackElo "1989"]
[Annotator "NA"]
[PlyCount "40"]
[EventDate "2019.08.05"]
[EventType "swiss"]
[EventCountry "NED"]
[SourceTitle "playchess.com"]
[Source "ChessBase"]
[SourceQuality "1"]
[TimeControl "5400+30"]

1. e4 {[%emt 0:00:00]} c5 {[%emt 0:00:00]} 2. Nf3 {[%emt 0:00:00]} Nc6 {[%emt 0:00:00]} 3. g3 {[%emt 0:00:35]} g6 {[%emt 0:03:10]} 4. Bg2 {[%emt 0:02:37]} Bg7 {[%emt 0:00:08]} 5. O-O {[%emt 0:01:48]} e5 {[%emt 0:03:02]} 6. c3 {[%emt 0:03:30]} Nge7 {[%emt 0:04:52]} 7. d3 {[%emt 0:04:49]} d5 {[%emt 0:10:35]} 8. Nbd2 {[%emt 0:05:33]} O-O {[%emt 0:01:13]} 9. Re1 {[%emt 0:05:35]} Re8 {[%emt 0:13:01]} 10. Nf1 {[%emt 0:08:26]} h6 {[%emt 0:02:23]} 11. Ne3 {[%emt 0:02:55]} Be6 {[%emt 0:08:24]} 12. h3 {[%emt 0:08:37]} Qd7 {[%emt 0:00:57]} 13. Kh2 {[%emt 0:03:58]} Rad8 {[%emt 0:07:17]} 14. Bd2 {[%emt 0:11:35]} d4 {[%emt 0:06:43]} 15. cxd4 {[%emt 0:06:29]} Nxd4 {[%emt 0:00:22]} 16. Bf1 {[%emt 0:02:44]} Nec6 {[%emt 0:09:50]} 17. Nc4 {[%emt 0:05:19]} Nxf3+ {[%emt 0:01:00]} 18. Qxf3 {[%emt 0:01:49]} Bxc4 {[%emt 0:00:08]} 19. dxc4 {[%emt 0:02:43]} Qxd2 {[%emt 0:00:08]} 20. Re2 {[%emt 0:09:01]} Nd4 {[%emt 0:00:47]} 0-1

[Event "ONJK-A 2019"]
[Site "Borne"]
[Date "2019.08.06"]
[Round "2.1"]
[White "Boudry, William"]
[Black "Maerevoet, Sim"]
[Result "0-1"]
[ECO "B21"]
[WhiteElo "2033"]
[BlackElo "2321"]
[Annotator "NA"]
[PlyCount "84"]
[EventDate "2019.08.05"]
[EventType "swiss"]
[EventCountry "NED"]
[SourceTitle "playchess.com"]
[Source "ChessBase"]
[SourceQuality "1"]
[TimeControl "5400+30"]

1. e4 {[%emt 0:00:00]} c5 {[%emt 0:00:00]} 2. d4 {[%emt 0:00:29]} cxd4 {[%emt 0:00:00]} 3. c3 {[%emt 0:00:07]} dxc3 {[%emt 0:00:43]} 4. Nxc3 {[%emt 0:00:06]} Nc6 {[%emt 0:00:07]} 5. Nf3 {[%emt 0:00:15]} d6 {[%emt 0:00:12]} 6. Bc4 {[%emt 0:00:15]} a6 {[%emt 0:00:09]} 7. O-O {[%emt 0:00:14]} Nf6 {[%emt 0:00:05]} 8. Bf4 {[%emt 0:00:57] B21: Sicilian: 2 f4 and Morra Gambit} (8. h3 e6 9. Qe2 b5 10. Bb3 Bb7 11. Rd1 Qb8 12. Bf4 Nd7 13. Rd2 Be7 14. Bxd6 Bxd6 15. Rad1 Bf4 16. Rxd7 {0-1 (49) Mosadeghpour,M (2475)-Grigoryan,K (2602) Mashhad 2016}) 8... Bg4 {[%emt 0:00:11]} 9. h3 {[%emt 0:00:05]} Bh5 {[%emt 0:00:36]} 10. g4 {[%emt 0:00:36]} Bg6 {[%emt 0:00:23]} 11. e5 {[%emt 0:00:05]} dxe5 {[%emt 0:05:21]} 12. Nxe5 {[%emt 0:00:39]} Qc8 $2 $146 {[%emt 0:06:09] [#]} (12... Qxd1 $11 {and Black stays safe.} 13. Raxd1 (13. Rfxd1 e6 $11) 13... e6) ({Predecessor:} 12... Nxe5 13. Bxe5 Qxd1 14. Rfxd1 e6 15. Be2 Nd7 {1-0 (27) Devallee,J (2284)-Trouve,G (2142) Avoine 2016}) 13. Qb3 $2 {[%emt 0:04:11]} ({White should try} 13. Nd5 $1 $18 Nxd5 14. Bxd5) 13... e6 $1 {[%emt 0:01:11]} 14. Nxc6 {[%emt 0:02:13]} bxc6 {[%emt 0:06:07]} (14... Qxc6 $11 15. Rfe1 Bc5) 15. Na4 {[%emt 0:04:48]} Ra7 $1 {[%emt 0:02:34]} 16. Be3 {[%emt 0:02:03]} (16. g5 $14 Nd5 17. Bxd5 exd5 18. Nb6) 16... Rb7 {[%emt 0:11:13]} 17. Nb6 {[%emt 0:02:27]} Qc7 {[%emt 0:01:41]} 18. Bxa6 {[%emt 0:02:21]} Ra7 {[%emt 0:03:00] [#]} (18... Rb8 $1 $11 19. Rfc1 Be4) 19. Qc4 $11 {[%emt 0:03:28]} (19. Bb5 $1 $16 {[%cal Rb5c6][%mdl 512]} Be4 (19... cxb5 20. Qxb5+) 20. g5) 19... Bd6 {[%emt 0:04:23]} 20. Nc8 {[%emt 0:41:24]} Bh2+ {[%emt 0:02:01]} 21. Kh1 {[%emt 0:00:05]} Be4+ {[%emt 0:07:22]} 22. f3 {[%emt 0:03:02]} Bd5 {[%emt 0:13:25]} 23. Qe2 {[%emt 0:01:37]} Rxa6 {[%emt 0:00:23]} 24. Qxa6 {[%emt 0:02:50]} Qg3 {[%emt 0:00:21]} 25. Qe2 {[%emt 0:01:57]} Qxh3 {[%emt 0:00:27]} 26. Qg2 {[%emt 0:00:03]} Qxg2+ {[%emt 0:02:02]} 27. Kxg2 {[%emt 0:00:04]} Nxg4 {[%emt 0:00:12]} 28. Bc5 {[%emt 0:00:29]} Bf4 {[%emt 0:03:12]} 29. Rfe1 {[%emt 0:00:36]} Nh2 {[%emt 0:04:24]} 30. Kf2 {[%emt 0:02:08]} Nxf3 {[%emt 0:00:33]} 31. Red1 {[%emt 0:00:41]} Ng5 {[%emt 0:01:13]} 32. Nb6 {[%emt 0:04:21]} Ne4+ {[%emt 0:03:00]} 33. Kf3 {[%emt 0:00:07]} g5 {[%emt 0:09:30]} 34. Nxd5 {[%emt 0:01:04]} exd5 {[%emt 0:00:07]} 35. Bd4 {[%emt 0:00:19]} f6 {[%emt 0:00:25]} 36. a4 {[%emt 0:01:37]} h5 {[%emt 0:00:49]} 37. a5 {[%emt 0:00:39]} Kd7 {[%emt 0:00:10]} 38. a6 {[%emt 0:02:02]} Ra8 {[%emt 0:00:17]} 39. Ra3 {[%emt 0:01:09]} f5 {[%emt 0:02:06]} 40. a7 {[%emt 0:00:59]} h4 {[%emt 0:01:14]} 41. Rdd3 {[%emt 0:02:48]} h3 {[%emt 0:00:31]} 42. Rdb3 {[%emt 0:00:26]} Nd2+ {[%emt 0:01:23]} 0-1

[Event "ONJK-A 2019"]
[Site "Borne"]
[Date "2019.08.06"]
[Round "2.2"]
[White "Merkon, Oseb"]
[Black "Baselmans, Luuk"]
[Result "0-1"]
[ECO "A25"]
[WhiteElo "2013"]
[BlackElo "2250"]
[Annotator "NA"]
[PlyCount "94"]
[EventDate "2019.08.05"]
[EventType "swiss"]
[EventCountry "NED"]
[SourceTitle "playchess.com"]
[Source "ChessBase"]
[SourceQuality "1"]
[TimeControl "5400+30"]

1. c4 {[%emt 0:00:00]} e5 {[%emt 0:00:00]} 2. Nc3 {[%emt 0:00:00]} Nc6 {[%emt 0:00:00]} 3. g3 {[%emt 0:00:00]} Nf6 {[%emt 0:00:00]} 4. e4 {[%emt 0:00:00]} Bc5 {[%emt 0:02:45]} 5. Bg2 {[%emt 0:00:21]} O-O {[%emt 0:01:51]} 6. Nge2 {[%emt 0:00:11]} a6 {[%emt 0:02:50]} 7. d3 {[%emt 0:00:33]} d6 {[%emt 0:00:23]} 8. O-O {[%emt 0:00:19]} Be6 {[%emt 0:01:40]} 9. Be3 {[%emt 0:00:20]} Nd7 {[%emt 0:05:24]} 10. Bxc5 {[%emt 0:11:41]} Nxc5 {[%emt 0:01:01]} 11. b3 {[%emt 0:02:05]} Qd7 {[%emt 0:12:53]} 12. d4 {[%emt 0:04:34]} exd4 {[%emt 0:01:04]} 13. Nxd4 {[%emt 0:00:06]} Bh3 {[%emt 0:00:57]} 14. f4 {[%emt 0:24:51]} Rae8 $11 {[%emt 0:03:28]} 15. Bxh3 {[%emt 0:01:37]} Qxh3 {[%emt 0:00:10]} 16. Nxc6 {[%emt 0:02:18]} bxc6 {[%emt 0:00:58]} 17. Qf3 {[%emt 0:00:16]} a5 {[%emt 0:10:34]} 18. Rae1 {[%emt 0:07:28]} h5 {[%emt 0:05:14]} 19. Re3 {[%emt 0:05:39]} Re7 {[%emt 0:04:40]} 20. e5 {[%emt 0:05:30]} f6 {[%emt 0:16:38]} 21. exf6 {[%emt 0:11:15]} Rxe3 {[%emt 0:00:15]} 22. Qxe3 {[%emt 0:00:07]} gxf6 {[%emt 0:00:46]} 23. f5 {[%emt 0:02:59]} Qg4 {[%emt 0:04:34]} 24. Rf4 {[%emt 0:00:06]} Qg5 {[%emt 0:00:14]} 25. Ne4 {[%emt 0:04:01]} Nxe4 {[%emt 0:00:20]} 26. Qxe4 {[%emt 0:00:11]} c5 {[%emt 0:02:33]} 27. Qe6+ {[%emt 0:02:20]} Kg7 {[%emt 0:01:32]} 28. Kf2 {[%emt 0:03:07]} Kh6 {[%emt 0:01:24]} 29. Qd7 {[%emt 0:01:42]} Qg7 {[%emt 0:00:29]} 30. Qb5 {[%emt 0:00:22]} Ra8 {[%emt 0:03:33]} 31. Qc6 {[%emt 0:00:06]} Rf8 {[%emt 0:00:20]} 32. Qa6 {[%emt 0:00:32]} Qe7 {[%emt 0:03:46]} 33. Qxa5 {[%emt 0:00:17]} Qe5 {[%emt 0:00:20]} 34. Qd2 {[%emt 0:01:56]} Kg7 {[%emt 0:00:05]} 35. g4 {[%emt 0:01:14]} Rh8 {[%emt 0:01:13]} 36. Qe3 {[%emt 0:00:16]} hxg4 {[%emt 0:02:06]} 37. Rxg4+ {[%emt 0:00:22]} Kf7 {[%emt 0:00:06]} 38. Qxe5 {[%emt 0:01:44]} fxe5 {[%emt 0:00:06]} 39. Rg2 {[%emt 0:01:57]} Kf6 {[%emt 0:00:11]} 40. Ke3 {[%emt 0:00:17]} Kxf5 {[%emt 0:00:16]} 41. Rf2+ {[%emt 0:00:09]} Ke6 {[%emt 0:00:20]} 42. Ke4 {[%emt 0:01:11]} c6 {[%emt 0:00:33]} 43. a4 {[%emt 0:01:31]} Rh3 {[%emt 0:00:28]} 44. Rf3 {[%emt 0:00:19]} d5+ {[%emt 0:00:15]} 45. Ke3 {[%emt 0:00:33]} d4+ {[%emt 0:01:03]} 46. Ke4 {[%emt 0:01:29]} Rh4+ {[%emt 0:00:07]} 47. Kd3 {[%emt 0:00:15]} e4+ {[%emt 0:00:05] Kxd4} 0-1

[Event "ONJK-A 2019"]
[Site "Borne"]
[Date "2019.08.06"]
[Round "2.3"]
[White "Van Malder, Dries"]
[Black "Ypma, Jord"]
[Result "1/2-1/2"]
[ECO "B51"]
[WhiteElo "2178"]
[BlackElo "1984"]
[Annotator "NA"]
[PlyCount "69"]
[EventDate "2019.08.05"]
[EventType "swiss"]
[EventCountry "NED"]
[SourceTitle "playchess.com"]
[Source "ChessBase"]
[SourceQuality "1"]
[TimeControl "5400+30"]

1. e4 {[%emt 0:00:00]} c5 {[%emt 0:00:00]} 2. Nf3 {[%emt 0:00:00]} d6 {[%emt 0:00:00]} 3. Bb5+ {[%emt 0:00:00]} Nd7 {[%emt 0:00:00]} 4. c3 {[%emt 0:00:15]} Ngf6 {[%emt 0:00:24]} 5. Qe2 {[%emt 19:32:58]} a6 6. Ba4 {[%emt 0:00:00]} b5 {[%emt 0:09:48]} 7. Bc2 {[%emt 0:00:00]} Bb7 {[%emt 0:01:01]} 8. O-O {[%emt 0:00:00]} e6 {[%emt 0:05:26]} 9. d4 {[%emt 0:00:00]} Be7 {[%emt 0:01:01]} 10. Re1 {[%emt 0:00:00]} Rc8 {[%emt 0:09:27]} 11. Bd3 {[%emt 0:00:00]} Nb6 {[%emt 0:10:48]} 12. Nbd2 {[%emt 0:00:00]} Qc7 {[%emt 0:07:37]} 13. Nf1 {[%emt 0:00:00]} h6 $11 {[%emt 0:04:20]} 14. Ng3 {[%emt 0:00:00]} g5 {[%emt 0:01:16]} 15. h3 {[%emt 0:00:00]} Rg8 {[%emt 0:03:39]} 16. Nh2 {[%emt 0:00:00]} Nbd7 {[%emt 0:07:12]} 17. Ng4 {[%emt 0:00:00]} Nxg4 {[%emt 0:00:52]} 18. hxg4 {[%emt 0:00:00]} Nf6 {[%emt 0:01:16]} 19. f3 {[%emt 0:00:00]} Rh8 {[%emt 0:05:02]} 20. Be3 {[%emt 0:09:10]} h5 {[%emt 0:08:12]} 21. Nxh5 {[%emt 0:00:00]} Nxh5 {[%emt 0:00:00]} 22. gxh5 {[%emt 0:00:00]} Rxh5 {[%emt 0:00:00]} 23. g4 {[%emt 0:00:00]} Rh4 {[%emt 0:02:09]} 24. Bf2 {[%emt 0:00:00]} Rh6 {[%emt 0:02:19]} 25. Kg2 {[%emt 0:00:00]} c4 {[%emt 0:00:49]} 26. Bc2 {[%emt 0:00:00]} Kd7 {[%emt 0:00:54]} 27. Bg3 {[%emt 0:00:00]} Rch8 {[%emt 0:00:44]} 28. a4 {[%emt 0:00:00]} Rh3 {[%emt 0:04:52]} 29. axb5 {[%emt 0:00:00]} axb5 {[%emt 0:02:39]} 30. b3 {[%emt 0:00:00]} f5 {[%emt 0:00:42]} 31. Rh1 {[%emt 0:00:00]} Rxh1 {[%emt 0:00:51]} 32. Rxh1 {[%emt 0:00:00]} Rxh1 {[%emt 0:00:06]} 33. Kxh1 {[%emt 0:00:00]} fxg4 {[%emt 0:00:22]} 34. fxg4 {[%emt 0:00:00]} Qa5 {[%emt 0:01:16]} 35. Be1 {[%emt 0:00:00]} 1/2-1/2